[Event "*** Titled Tuesday Blitz"]
[Site "Chess.com"]
[Date "2020.12.29"]
[Round "9"]
[White "XiaoKangZhong"]
[Black "mirochka"]
[Result "1-0"]
[WhiteElo "2411"]
[BlackElo "2185"]
[TimeControl "180+1"]
[EndTime "11:45:11 PST"]
[Termination "XiaoKangZhong won on time"]

1. e4 {[%clk 0:03:00.9]} 1... c5 {[%clk 0:02:59.1]} 2. c3 {[%clk 0:02:58.5]}
2... d5 {[%clk 0:02:50.2]} 3. exd5 {[%clk 0:02:57.1]} 3... Qxd5 {[%clk
0:02:51.1]} 4. d4 {[%clk 0:02:45.9]} 4... Nc6 {[%clk 0:02:49.4]} 5. Nf3 {[%clk
0:02:44.8]} 5... Bf5 {[%clk 0:02:47.7]} 6. Be3 {[%clk 0:02:42.4]} 6... Bxb1
{[%clk 0:02:23.8]} 7. Rxb1 {[%clk 0:02:37.7]} 7... cxd4 {[%clk 0:02:23.7]} 8.
Nxd4 {[%clk 0:02:37.3]} 8... O-O-O {[%clk 0:01:33.5]} 9. Be2 {[%clk 0:01:53]}
9... e5 {[%clk 0:01:29.8]} 10. Nxc6 {[%clk 0:01:49.3]} 10... Qxc6 {[%clk
0:01:25.4]} 11. Qb3 {[%clk 0:01:41.8]} 11... Qxg2 {[%clk 0:01:18.8]} 12. Rf1
{[%clk 0:01:41.9]} 12... Qe4 {[%clk 0:00:57.4]} 13. Qc4+ {[%clk 0:01:35]} 13...
Qxc4 {[%clk 0:00:52.1]} 14. Bxc4 {[%clk 0:01:35.9]} 14... Nh6 {[%clk 0:00:33.6]}
15. Bxa7 {[%clk 0:01:27.4]} 15... Kc7 {[%clk 0:00:29.7]} 16. Be3 {[%clk
0:01:25.8]} 16... f5 {[%clk 0:00:26.5]} 17. Bxh6 {[%clk 0:01:21.1]} 17... gxh6
{[%clk 0:00:26.1]} 18. Ke2 {[%clk 0:01:20.2]} 18... Bc5 {[%clk 0:00:22.4]} 19.
Rbd1 {[%clk 0:01:18.9]} 19... e4 {[%clk 0:00:20.3]} 20. Rxd8 {[%clk 0:01:09.3]}
20... Rxd8 {[%clk 0:00:21.2]} 21. Rg1 {[%clk 0:01:09.1]} 21... f4 {[%clk
0:00:20.3]} 22. Rg7+ {[%clk 0:01:09.1]} 22... Kc6 {[%clk 0:00:20.5]} 23. Rxh7
{[%clk 0:01:01.6]} 23... f3+ {[%clk 0:00:19.9]} 24. Ke1 {[%clk 0:01:02]} 24...
Rd6 {[%clk 0:00:18.1]} 25. b4 {[%clk 0:00:54.5]} 25... Bb6 {[%clk 0:00:17.4]}
26. a4 {[%clk 0:00:55.2]} 26... Rg6 {[%clk 0:00:16.8]} 27. Bb5+ {[%clk
0:00:47.1]} 27... Kd6 {[%clk 0:00:16.2]} 28. Rxb7 {[%clk 0:00:45.5]} 28... Rg1+
{[%clk 0:00:16.1]} 29. Bf1 {[%clk 0:00:45.4]} 29... e3 {[%clk 0:00:13.5]} 30.
Rxb6+ {[%clk 0:00:41.5]} 30... Kc7 {[%clk 0:00:13.5]} 31. Re6 {[%clk 0:00:41.7]}
31... e2 {[%clk 0:00:12.6]} 32. Rxe2 {[%clk 0:00:42]} 32... fxe2 {[%clk
0:00:13.1]} 33. Kxe2 {[%clk 0:00:42.7]} 33... Rh1 {[%clk 0:00:13]} 34. Bg2
{[%clk 0:00:38.4]} 34... Rxh2 {[%clk 0:00:13.1]} 35. Be4 {[%clk 0:00:39.1]}
35... Rh4 {[%clk 0:00:12.4]} 36. Ke3 {[%clk 0:00:39.6]} 36... Rh2 {[%clk
0:00:10.4]} 37. c4 {[%clk 0:00:35.9]} 37... Rh3+ {[%clk 0:00:10.1]} 38. Bf3
{[%clk 0:00:34.5]} 38... h5 {[%clk 0:00:09.1]} 39. c5 {[%clk 0:00:32]} 39... Rh4
{[%clk 0:00:09.2]} 40. Be4 {[%clk 0:00:31.8]} 40... Rh3+ {[%clk 0:00:07.9]} 41.
Bf3 {[%clk 0:00:29.8]} 41... Rh4 {[%clk 0:00:07.3]} 42. Be4 {[%clk 0:00:30]}
42... Rh3+ {[%clk 0:00:07.1]} 43. Kd4 {[%clk 0:00:30.3]} 43... Ra3 {[%clk
0:00:06.5]} 44. a5 {[%clk 0:00:30.2]} 44... h4 {[%clk 0:00:06.5]} 45. f4 {[%clk
0:00:26.6]} 45... h3 {[%clk 0:00:05.6]} 46. f5 {[%clk 0:00:26.9]} 46... h2
{[%clk 0:00:05.3]} 47. f6 {[%clk 0:00:27.1]} 47... Ra4 {[%clk 0:00:05]} 48. Kc4
{[%clk 0:00:21.8]} 48... Ra1 {[%clk 0:00:04.1]} 49. f7 {[%clk 0:00:22.2]} 49...
Rf1 {[%clk 0:00:03.8]} 50. b5 {[%clk 0:00:21.1]} 50... Rf4 {[%clk 0:00:03.6]}
51. b6+ {[%clk 0:00:20.1]} 51... Kb8 {[%clk 0:00:03.4]} 52. Kd3 {[%clk
0:00:19.1]} 52... Rxf7 {[%clk 0:00:02.3]} 53. a6 {[%clk 0:00:18.4]} 53... Rd7+
{[%clk 0:00:02.3]} 54. Kc4 {[%clk 0:00:18.1]} 54... Re7 {[%clk 0:00:01.9]} 55.
a7+ {[%clk 0:00:18.3]} 1-0

[Event "*** Titled Tuesday Blitz"]
[Site "Chess.com"]
[Date "2020.12.29"]
[Round "9"]
[White "malakismayil"]
[Black "MatyChess1"]
[Result "0-1"]
[WhiteElo "2303"]
[BlackElo "2518"]
[TimeControl "180+1"]
[EndTime "11:45:12 PST"]
[Termination "MatyChess1 won by resignation"]

1. e4 {[%clk 0:03:00.9]} 1... c5 {[%clk 0:03:00]} 2. Nf3 {[%clk 0:02:58.5]} 2...
g6 {[%clk 0:02:57.6]} 3. d4 {[%clk 0:02:57.8]} 3... cxd4 {[%clk 0:02:58]} 4.
Nxd4 {[%clk 0:02:58.4]} 4... Nc6 {[%clk 0:02:57.6]} 5. Nxc6 {[%clk 0:02:57.7]}
5... bxc6 {[%clk 0:02:57]} 6. Nc3 {[%clk 0:02:58.2]} 6... Bg7 {[%clk 0:02:56.8]}
7. Bc4 {[%clk 0:02:58.6]} 7... Rb8 {[%clk 0:02:54.5]} 8. O-O {[%clk 0:02:58.4]}
8... d6 {[%clk 0:02:53]} 9. Bb3 {[%clk 0:02:56.6]} 9... Nf6 {[%clk 0:02:52.5]}
10. Be3 {[%clk 0:02:54.3]} 10... a5 {[%clk 0:02:52.4]} 11. f4 {[%clk 0:02:27.4]}
11... O-O {[%clk 0:02:40.6]} 12. h3 {[%clk 0:02:24.6]} 12... Nh5 {[%clk
0:02:01.2]} 13. Qe1 {[%clk 0:02:19.3]} 13... e5 {[%clk 0:01:53.3]} 14. Rd1
{[%clk 0:02:06.1]} 14... Nxf4 {[%clk 0:01:39.9]} 15. Bxf4 {[%clk 0:01:55.6]}
15... exf4 {[%clk 0:01:40.2]} 16. Rxf4 {[%clk 0:01:56.5]} 16... Be5 {[%clk
0:01:37.6]} 17. Rf1 {[%clk 0:01:54.4]} 17... Qg5 {[%clk 0:01:33.9]} 18. Qf2
{[%clk 0:01:51.2]} 18... Bxh3 {[%clk 0:01:28.8]} 19. Rd3 {[%clk 0:01:41.3]}
19... Bg4 {[%clk 0:01:10.2]} 20. Ne2 {[%clk 0:01:21.3]} 20... Qh5 {[%clk
0:00:51.5]} 21. Nf4 {[%clk 0:01:07.9]} 21... Qh6 {[%clk 0:00:47.6]} 22. Nh3
{[%clk 0:01:03.8]} 22... c5 {[%clk 0:00:36.9]} 23. c3 {[%clk 0:01:00.3]} 23...
Qh5 {[%clk 0:00:25.8]} 24. Re1 {[%clk 0:00:56]} 24... Rb7 {[%clk 0:00:20.9]} 25.
Bd5 {[%clk 0:00:54.6]} 25... Rc7 {[%clk 0:00:20]} 26. b3 {[%clk 0:00:50.9]}
26... Rb8 {[%clk 0:00:19.1]} 27. Bc4 {[%clk 0:00:45]} 27... Rf8 {[%clk
0:00:18.9]} 28. Rde3 {[%clk 0:00:44.4]} 28... Qh6 {[%clk 0:00:17.7]} 29. Rd3
{[%clk 0:00:44.1]} 29... Re7 {[%clk 0:00:17.6]} 30. Rde3 {[%clk 0:00:44.1]}
30... Qg7 {[%clk 0:00:17.7]} 31. Rd3 {[%clk 0:00:44.1]} 31... Bxc3 {[%clk
0:00:17.3]} 32. Rf1 {[%clk 0:00:33.4]} 32... Bd4 {[%clk 0:00:16.3]} 33. Rxd4
{[%clk 0:00:33.8]} 33... Qxd4 {[%clk 0:00:16.8]} 34. Qxd4 {[%clk 0:00:32.5]}
34... cxd4 {[%clk 0:00:17.7]} 35. Ng5 {[%clk 0:00:32.9]} 35... Kg7 {[%clk
0:00:17.1]} 36. Kf2 {[%clk 0:00:30.6]} 36... h6 {[%clk 0:00:16.4]} 37. Nf3
{[%clk 0:00:30.9]} 37... Rxe4 {[%clk 0:00:16.3]} 38. Rd1 {[%clk 0:00:30.7]}
38... Bxf3 {[%clk 0:00:15.1]} 39. gxf3 {[%clk 0:00:31.6]} 39... Rf4 {[%clk
0:00:15.1]} 40. Kg3 {[%clk 0:00:31.5]} 40... g5 {[%clk 0:00:16]} 41. Bd5 {[%clk
0:00:31.4]} 41... Re8 {[%clk 0:00:16.3]} 42. Be4 {[%clk 0:00:30.9]} 42... h5
{[%clk 0:00:16.7]} 43. Rh1 {[%clk 0:00:29.8]} 43... h4+ {[%clk 0:00:17]} 44. Kf2
{[%clk 0:00:30]} 44... Rc8 {[%clk 0:00:16.6]} 45. Ke2 {[%clk 0:00:28.6]} 45...
Rc3 {[%clk 0:00:16.7]} 46. Kd2 {[%clk 0:00:27.8]} 46... Kf6 {[%clk 0:00:16.4]}
47. Rg1 {[%clk 0:00:28.1]} 47... Rcxf3 {[%clk 0:00:16.6]} 48. Bxf3 {[%clk
0:00:27.4]} 48... Rxf3 {[%clk 0:00:17.5]} 49. Rc1 {[%clk 0:00:27.3]} 49... h3
{[%clk 0:00:17.6]} 50. Rh1 {[%clk 0:00:26.7]} 50... g4 {[%clk 0:00:17.7]} 51.
Ke2 {[%clk 0:00:26.9]} 51... d3+ {[%clk 0:00:17.7]} 52. Kd2 {[%clk 0:00:26.9]}
52... Ke5 {[%clk 0:00:18.2]} 53. Re1+ {[%clk 0:00:26.2]} 53... Kf4 {[%clk
0:00:18.7]} 54. Re7 {[%clk 0:00:26]} 54... f5 {[%clk 0:00:19.3]} 55. Rd7 {[%clk
0:00:25.2]} 55... Rf2+ {[%clk 0:00:19.2]} 56. Kxd3 {[%clk 0:00:24.9]} 56... Rxa2
{[%clk 0:00:20.1]} 57. Rxd6 {[%clk 0:00:25.3]} 57... a4 {[%clk 0:00:20.3]} 58.
Rd4+ {[%clk 0:00:25.2]} 58... Kg3 {[%clk 0:00:20.2]} 59. bxa4 {[%clk 0:00:26.1]}
59... f4 {[%clk 0:00:20.4]} 60. Kc3 {[%clk 0:00:26.4]} 60... h2 {[%clk
0:00:20.2]} 61. Kb3 {[%clk 0:00:26.9]} 61... Ra1 {[%clk 0:00:20]} 62. Rd3+
{[%clk 0:00:27.2]} 62... f3 {[%clk 0:00:20]} 63. a5 {[%clk 0:00:27]} 63... Rxa5
{[%clk 0:00:19.8]} 64. Kb4 {[%clk 0:00:26.8]} 64... Ra8 {[%clk 0:00:20.1]} 0-1

[Event "*** Titled Tuesday Blitz"]
[Site "Chess.com"]
[Date "2020.12.29"]
[Round "9"]
[White "Matols"]
[Black "ehrenfeld"]
[Result "0-1"]
[WhiteElo "2268"]
[BlackElo "2526"]
[TimeControl "180+1"]
[EndTime "11:45:13 PST"]
[Termination "ehrenfeld won on time"]

1. d4 {[%clk 0:03:00.9]} 1... Nf6 {[%clk 0:02:59.1]} 2. c4 {[%clk 0:03:00.8]}
2... e6 {[%clk 0:02:57.7]} 3. g3 {[%clk 0:02:59.8]} 3... Bb4+ {[%clk 0:02:57.4]}
4. Bd2 {[%clk 0:02:59.5]} 4... a5 {[%clk 0:02:57.4]} 5. Bg2 {[%clk 0:02:58.6]}
5... d6 {[%clk 0:02:56.7]} 6. e4 {[%clk 0:02:58.6]} 6... Nc6 {[%clk 0:02:54]} 7.
Ne2 {[%clk 0:02:58.4]} 7... e5 {[%clk 0:02:53.5]} 8. d5 {[%clk 0:02:57.3]} 8...
Ne7 {[%clk 0:02:53.3]} 9. O-O {[%clk 0:02:56.4]} 9... Bc5 {[%clk 0:02:51.7]} 10.
Nbc3 {[%clk 0:02:54.3]} 10... Ng6 {[%clk 0:02:47.9]} 11. a3 {[%clk 0:02:49.2]}
11... h5 {[%clk 0:02:29.3]} 12. Bg5 {[%clk 0:02:10.5]} 12... h4 {[%clk
0:02:26.3]} 13. b4 {[%clk 0:01:57.6]} 13... Bb6 {[%clk 0:02:00.6]} 14. Na4
{[%clk 0:01:29.3]} 14... Ba7 {[%clk 0:01:59.4]} 15. c5 {[%clk 0:01:28.4]} 15...
hxg3 {[%clk 0:01:56.1]} 16. fxg3 {[%clk 0:01:15.3]} 16... Bd7 {[%clk 0:01:52]}
17. Rc1 {[%clk 0:01:11.3]} 17... Rh5 {[%clk 0:01:45.6]} 18. Bxf6 {[%clk
0:01:08.5]} 18... gxf6 {[%clk 0:01:44.2]} 19. Nec3 {[%clk 0:00:51.6]} 19... Rh7
{[%clk 0:01:37.5]} 20. Qf3 {[%clk 0:00:46.7]} 20... Kf8 {[%clk 0:01:29.8]} 21.
Qxf6 {[%clk 0:00:44.6]} 21... Qxf6 {[%clk 0:01:29.2]} 22. Rxf6 {[%clk
0:00:44.5]} 22... Ke7 {[%clk 0:01:27.7]} 23. Rf2 {[%clk 0:00:39.7]} 23... Rah8
{[%clk 0:01:02.8]} 24. Bf3 {[%clk 0:00:38.9]} 24... f5 {[%clk 0:00:36.8]} 25. h4
{[%clk 0:00:37.1]} 25... f4 {[%clk 0:00:33.5]} 26. h5 {[%clk 0:00:34.8]} 26...
fxg3 {[%clk 0:00:33.2]} 27. Rg2 {[%clk 0:00:32.1]} 27... Nf4 {[%clk 0:00:32.8]}
28. Rxg3 {[%clk 0:00:32]} 28... Nxh5 {[%clk 0:00:31]} 29. Bxh5 {[%clk
0:00:20.5]} 29... Rxh5 {[%clk 0:00:30.4]} 30. Rg7+ {[%clk 0:00:19.6]} 30... Kd8
{[%clk 0:00:27.6]} 31. Kf2 {[%clk 0:00:17.1]} 31... Rh2+ {[%clk 0:00:25.6]} 32.
Rg2 {[%clk 0:00:16.9]} 32... c6 {[%clk 0:00:15.2]} 33. Rg1 {[%clk 0:00:15.2]}
33... cxd5 {[%clk 0:00:14.2]} 34. exd5 {[%clk 0:00:13.9]} 34... dxc5 {[%clk
0:00:13.6]} 35. bxc5 {[%clk 0:00:13]} 35... Rxg2+ {[%clk 0:00:12.1]} 36. Rxg2
{[%clk 0:00:13]} 36... Rh4 {[%clk 0:00:12]} 37. Nb6 {[%clk 0:00:10.7]} 37...
Bxb6 {[%clk 0:00:11.2]} 38. cxb6 {[%clk 0:00:10.7]} 38... Rc4 {[%clk 0:00:11]}
39. Rg3 {[%clk 0:00:07.7]} 39... Rd4 {[%clk 0:00:09.3]} 40. Ke3 {[%clk
0:00:06.7]} 40... Ke7 {[%clk 0:00:09.3]} 41. Rg7+ {[%clk 0:00:05.4]} 41... Kd6
{[%clk 0:00:09]} 42. Ne4+ {[%clk 0:00:05.1]} 42... Kxd5 {[%clk 0:00:08.7]} 43.
Rxd7+ {[%clk 0:00:05.2]} 43... Kc4 {[%clk 0:00:07]} 44. Rxb7 {[%clk 0:00:02.9]}
44... Rd3+ {[%clk 0:00:05.9]} 45. Ke2 {[%clk 0:00:03.1]} 45... Rxa3 {[%clk
0:00:05.8]} 46. Rc7+ {[%clk 0:00:02.6]} 46... Kd5 {[%clk 0:00:05.6]} 47. Nf6+
{[%clk 0:00:01.1]} 47... Kd6 {[%clk 0:00:04.9]} 0-1

[Event "*** Titled Tuesday Blitz"]
[Site "Chess.com"]
[Date "2020.12.29"]
[Round "9"]
[White "IrishMonkey"]
[Black "GM4life"]
[Result "1-0"]
[WhiteElo "2635"]
[BlackElo "2436"]
[TimeControl "180+1"]
[EndTime "11:45:14 PST"]
[Termination "IrishMonkey won by checkmate"]

1. e4 {[%clk 0:03:00.9]} 1... c5 {[%clk 0:03:00]} 2. Nf3 {[%clk 0:02:57.1]} 2...
d6 {[%clk 0:02:59.6]} 3. d4 {[%clk 0:02:57.3]} 3... cxd4 {[%clk 0:03:00.2]} 4.
Nxd4 {[%clk 0:02:56.6]} 4... Nf6 {[%clk 0:03:00.8]} 5. Nc3 {[%clk 0:02:55.5]}
5... a6 {[%clk 0:03:01.3]} 6. Be2 {[%clk 0:02:53.6]} 6... e5 {[%clk 0:03:01.6]}
7. Nb3 {[%clk 0:02:51.6]} 7... Be7 {[%clk 0:03:02.1]} 8. O-O {[%clk 0:02:49.2]}
8... O-O {[%clk 0:03:01.7]} 9. a4 {[%clk 0:02:49]} 9... Be6 {[%clk 0:03:01.6]}
10. Bf3 {[%clk 0:02:45]} 10... Nbd7 {[%clk 0:03:01]} 11. a5 {[%clk 0:02:43.1]}
11... Qc7 {[%clk 0:03:01]} 12. Re1 {[%clk 0:02:40.9]} 12... Rac8 {[%clk
0:03:00.2]} 13. Be3 {[%clk 0:02:37.5]} 13... Rfd8 {[%clk 0:03:00.2]} 14. Nd2
{[%clk 0:02:34.7]} 14... h6 {[%clk 0:02:58.5]} 15. Nf1 {[%clk 0:02:31.9]} 15...
Nc5 {[%clk 0:02:58.2]} 16. Ng3 {[%clk 0:02:28.1]} 16... Qc6 {[%clk 0:02:57.3]}
17. Qe2 {[%clk 0:02:24.6]} 17... Kh7 {[%clk 0:02:48.2]} 18. Qd2 {[%clk
0:02:20.8]} 18... Bf8 {[%clk 0:02:46.7]} 19. Nd5 {[%clk 0:02:16.9]} 19... Bxd5
{[%clk 0:02:42.4]} 20. exd5 {[%clk 0:02:12.2]} 20... Qc7 {[%clk 0:02:39.7]} 21.
Rac1 {[%clk 0:02:12.4]} 21... g6 {[%clk 0:02:36.8]} 22. b4 {[%clk 0:02:09.4]}
22... Ncd7 {[%clk 0:02:30.8]} 23. c3 {[%clk 0:02:09.4]} 23... Ne8 {[%clk
0:02:22.9]} 24. h4 {[%clk 0:02:05.1]} 24... h5 {[%clk 0:02:15.4]} 25. c4 {[%clk
0:02:00.4]} 25... f5 {[%clk 0:02:13.2]} 26. Bxh5 {[%clk 0:01:53.4]} 26... gxh5
{[%clk 0:02:12.9]} 27. Nxf5 {[%clk 0:01:53.6]} 27... Ndf6 {[%clk 0:02:05]} 28.
Qd3 {[%clk 0:01:49.6]} 28... e4 {[%clk 0:02:04.6]} 29. Qd2 {[%clk 0:01:46.8]}
29... Ng7 {[%clk 0:02:01.6]} 30. Bb6 {[%clk 0:01:43.2]} 30... Qf7 {[%clk
0:01:55.1]} 31. Qh6+ {[%clk 0:01:34.7]} 31... Kg8 {[%clk 0:01:53]} 32. Qg5
{[%clk 0:01:35.6]} 32... Kh7 {[%clk 0:01:36.1]} 33. Bxd8 {[%clk 0:01:28.6]}
33... Rxd8 {[%clk 0:01:36.3]} 34. Ng3 {[%clk 0:01:28.7]} 34... Re8 {[%clk
0:01:33.3]} 35. Qf4 {[%clk 0:01:26]} 35... Qg6 {[%clk 0:01:31.6]} 36. Re3 {[%clk
0:01:23.5]} 36... Re5 {[%clk 0:01:19.7]} 37. Ree1 {[%clk 0:01:19.5]} 37... Nf5
{[%clk 0:01:14.8]} 38. Qg5 {[%clk 0:01:16.8]} 38... Nxg3 {[%clk 0:01:04.3]} 39.
Qxg3 {[%clk 0:01:09.8]} 39... Bh6 {[%clk 0:01:02.7]} 40. Qxg6+ {[%clk
0:01:03.7]} 40... Kxg6 {[%clk 0:01:03.2]} 41. Rb1 {[%clk 0:01:04.2]} 41... e3
{[%clk 0:01:00.8]} 42. g3 {[%clk 0:01:01]} 42... Ng4 {[%clk 0:00:59.5]} 43. f3
{[%clk 0:00:57.1]} 43... Nf2 {[%clk 0:00:57.9]} 44. Rb3 {[%clk 0:00:51.5]} 44...
Nh3+ {[%clk 0:00:40.8]} 45. Kg2 {[%clk 0:00:47.8]} 45... Nf2 {[%clk 0:00:39.5]}
46. f4 {[%clk 0:00:45.1]} 46... Re4 {[%clk 0:00:39]} 47. Rbxe3 {[%clk 0:00:44]}
47... Rxc4 {[%clk 0:00:22.6]} 48. Kxf2 {[%clk 0:00:38.6]} 48... Rxb4 {[%clk
0:00:23]} 49. Re6+ {[%clk 0:00:35.9]} 49... Kh7 {[%clk 0:00:23.1]} 50. Rc1
{[%clk 0:00:30.5]} 50... Bg7 {[%clk 0:00:23]} 51. Rc7 {[%clk 0:00:26.8]} 51...
Rb1 {[%clk 0:00:22.2]} 52. f5 {[%clk 0:00:22.4]} 52... Rb2+ {[%clk 0:00:23.1]}
53. Kf3 {[%clk 0:00:19.7]} 53... Rb3+ {[%clk 0:00:23.6]} 54. Kf4 {[%clk
0:00:17.9]} 54... Kh8 {[%clk 0:00:23.9]} 55. Re8+ {[%clk 0:00:14.9]} 55... Kh7
{[%clk 0:00:24]} 56. Ree7 {[%clk 0:00:14.5]} 56... Rb4+ {[%clk 0:00:24.7]} 57.
Kg5 {[%clk 0:00:12.4]} 57... Rg4+ {[%clk 0:00:24.8]} 58. Kxh5 {[%clk 0:00:08.5]}
58... Rxg3 {[%clk 0:00:25.2]} 59. f6 {[%clk 0:00:04.5]} 59... Kh8 {[%clk
0:00:25.7]} 60. Rxg7 {[%clk 0:00:03]} 60... Rf3 {[%clk 0:00:25.4]} 61. Rc8#
{[%clk 0:00:02.3]} 1-0

[Event "*** Titled Tuesday Blitz"]
[Site "Chess.com"]
[Date "2020.12.29"]
[Round "9"]
[White "Chernov_Alexander_A"]
[Black "Everyfishknows"]
[Result "0-1"]
[WhiteElo "2310"]
[BlackElo "2404"]
[TimeControl "180+1"]
[EndTime "11:45:14 PST"]
[Termination "Everyfishknows won on time"]

1. d4 {[%clk 0:02:45.4]} 1... Nf6 {[%clk 0:02:55.6]} 2. Nc3 {[%clk 0:02:45.3]}
2... d6 {[%clk 0:02:50.4]} 3. e4 {[%clk 0:02:43.4]} 3... e5 {[%clk 0:02:50.3]}
4. Nf3 {[%clk 0:02:42.3]} 4... Nbd7 {[%clk 0:02:49]} 5. Bc4 {[%clk 0:02:41.4]}
5... Be7 {[%clk 0:02:46.7]} 6. O-O {[%clk 0:02:41]} 6... O-O {[%clk 0:02:46.6]}
7. a4 {[%clk 0:02:36]} 7... a5 {[%clk 0:02:42.3]} 8. Re1 {[%clk 0:02:33.8]} 8...
c6 {[%clk 0:02:42.2]} 9. h3 {[%clk 0:02:33.2]} 9... h6 {[%clk 0:02:35.4]} 10.
Ba2 {[%clk 0:02:22.6]} 10... Re8 {[%clk 0:02:33.4]} 11. Nh4 {[%clk 0:01:56]}
11... exd4 {[%clk 0:01:17.6]} 12. Qxd4 {[%clk 0:01:53.4]} 12... Qb6 {[%clk
0:01:12.5]} 13. Qxb6 {[%clk 0:01:34.5]} 13... Nxb6 {[%clk 0:01:11.9]} 14. Be3
{[%clk 0:01:34.2]} 14... Nbd7 {[%clk 0:01:08.9]} 15. Ng6 {[%clk 0:01:32.5]}
15... Ne5 {[%clk 0:01:01.1]} 16. Nxe7+ {[%clk 0:01:31.5]} 16... Rxe7 {[%clk
0:00:58.1]} 17. Rad1 {[%clk 0:01:30.3]} 17... Ne8 {[%clk 0:00:47.6]} 18. Rd2
{[%clk 0:01:17.8]} 18... Be6 {[%clk 0:00:36.8]} 19. Bxe6 {[%clk 0:01:11.3]}
19... Rxe6 {[%clk 0:00:37.7]} 20. b3 {[%clk 0:01:10.6]} 20... Nd7 {[%clk
0:00:31.3]} 21. Red1 {[%clk 0:01:08.9]} 21... Ndf6 {[%clk 0:00:31.3]} 22. f3
{[%clk 0:01:08]} 22... d5 {[%clk 0:00:31.7]} 23. Bd4 {[%clk 0:01:03.1]} 23...
dxe4 {[%clk 0:00:31.1]} 24. Bxf6 {[%clk 0:00:49.6]} 24... Nxf6 {[%clk
0:00:30.8]} 25. fxe4 {[%clk 0:00:48.5]} 25... Nxe4 {[%clk 0:00:29]} 26. Rd8+
{[%clk 0:00:45.4]} 26... Rxd8 {[%clk 0:00:28.4]} 27. Rxd8+ {[%clk 0:00:44.5]}
27... Kh7 {[%clk 0:00:28.9]} 28. Nxe4 {[%clk 0:00:43.5]} 28... Rxe4 {[%clk
0:00:28.7]} 29. Rd7 {[%clk 0:00:43.9]} 29... Re2 {[%clk 0:00:24.8]} 30. Rxf7
{[%clk 0:00:41]} 30... Rxc2 {[%clk 0:00:22.8]} 31. Rxb7 {[%clk 0:00:40.5]} 31...
Rb2 {[%clk 0:00:22.7]} 32. Rb6 {[%clk 0:00:35.4]} 32... h5 {[%clk 0:00:20]} 33.
Rxc6 {[%clk 0:00:33.9]} 33... Rxb3 {[%clk 0:00:16.3]} 34. Rc5 {[%clk 0:00:34.1]}
34... g6 {[%clk 0:00:16.5]} 35. Rxa5 {[%clk 0:00:33.1]} 35... Ra3 {[%clk
0:00:17.2]} 36. Ra6 {[%clk 0:00:32.1]} 36... h4 {[%clk 0:00:15.5]} 37. Kf2
{[%clk 0:00:31.5]} 37... Kh6 {[%clk 0:00:15.6]} 38. a5 {[%clk 0:00:27.5]} 38...
Kg5 {[%clk 0:00:15.8]} 39. Ra8 {[%clk 0:00:25.3]} 39... Kf4 {[%clk 0:00:14.9]}
40. a6 {[%clk 0:00:24.5]} 40... Ra2+ {[%clk 0:00:14.5]} 41. Ke1 {[%clk 0:00:24]}
41... Kg3 {[%clk 0:00:12]} 42. Kf1 {[%clk 0:00:18.7]} 42... Ra1+ {[%clk
0:00:11.8]} 43. Ke2 {[%clk 0:00:18.2]} 43... Kxg2 {[%clk 0:00:12.4]} 44. Rh8
{[%clk 0:00:12]} 44... Kxh3 {[%clk 0:00:05.7]} 45. Ra8 {[%clk 0:00:05.8]} 45...
g5 {[%clk 0:00:05.5]} 46. Kf3 {[%clk 0:00:05.4]} 46... g4+ {[%clk 0:00:05.7]}
47. Kf4 {[%clk 0:00:05.1]} 47... g3 {[%clk 0:00:05.9]} 48. Kf3 {[%clk
0:00:02.4]} 48... Ra3+ {[%clk 0:00:06.1]} 49. Ke2 {[%clk 0:00:01.6]} 49... g2
{[%clk 0:00:06.6]} 0-1

[Event "*** Titled Tuesday Blitz"]
[Site "Chess.com"]
[Date "2020.12.29"]
[Round "9"]
[White "Neftegor"]
[Black "Logman74"]
[Result "0-1"]
[WhiteElo "2545"]
[BlackElo "2394"]
[TimeControl "180+1"]
[EndTime "11:45:16 PST"]
[Termination "Logman74 won by checkmate"]

1. d4 {[%clk 0:03:00.9]} 1... d5 {[%clk 0:02:57.9]} 2. c4 {[%clk 0:03:00.6]}
2... e6 {[%clk 0:02:58]} 3. Nc3 {[%clk 0:03:00.4]} 3... Nf6 {[%clk 0:02:58.1]}
4. Nf3 {[%clk 0:02:59.3]} 4... Be7 {[%clk 0:02:58.1]} 5. Bg5 {[%clk 0:02:58.8]}
5... O-O {[%clk 0:02:58.5]} 6. e3 {[%clk 0:02:57.9]} 6... h6 {[%clk 0:02:59]} 7.
Bxf6 {[%clk 0:02:57.9]} 7... Bxf6 {[%clk 0:02:58.5]} 8. Qd2 {[%clk 0:02:57.6]}
8... b6 {[%clk 0:02:52.7]} 9. cxd5 {[%clk 0:02:51.9]} 9... exd5 {[%clk
0:02:52.2]} 10. Be2 {[%clk 0:02:51.1]} 10... Be6 {[%clk 0:02:50.4]} 11. b4
{[%clk 0:02:48.6]} 11... c6 {[%clk 0:02:46.9]} 12. O-O {[%clk 0:02:47.8]} 12...
a5 {[%clk 0:02:46.9]} 13. a3 {[%clk 0:02:46.5]} 13... Nd7 {[%clk 0:02:44.8]} 14.
Rab1 {[%clk 0:02:46.3]} 14... axb4 {[%clk 0:02:43.6]} 15. axb4 {[%clk
0:02:45.6]} 15... Ra3 {[%clk 0:02:39.4]} 16. Rfd1 {[%clk 0:02:38.3]} 16... b5
{[%clk 0:02:17.6]} 17. e4 {[%clk 0:02:36.2]} 17... dxe4 {[%clk 0:02:12.6]} 18.
Nxe4 {[%clk 0:02:36.1]} 18... Bd5 {[%clk 0:02:13]} 19. Bd3 {[%clk 0:02:14.9]}
19... Nb6 {[%clk 0:02:06.7]} 20. Qf4 {[%clk 0:02:13.8]} 20... Be7 {[%clk
0:01:56.6]} 21. Ne5 {[%clk 0:02:12.9]} 21... Nc4 {[%clk 0:01:51.6]} 22. Bxc4
{[%clk 0:01:58.7]} 22... bxc4 {[%clk 0:01:49.8]} 23. Nc5 {[%clk 0:01:53.3]}
23... c3 {[%clk 0:01:33.4]} 24. Qc1 {[%clk 0:01:45.9]} 24... Qa8 {[%clk
0:01:06.9]} 25. Rd3 {[%clk 0:01:37.9]} 25... Bxc5 {[%clk 0:01:05.2]} 26. bxc5
{[%clk 0:01:28.5]} 26... Be4 {[%clk 0:01:04.5]} 27. Rg3 {[%clk 0:01:17]} 27...
Bxb1 {[%clk 0:01:02.7]} 28. h4 {[%clk 0:01:06]} 28... Bg6 {[%clk 0:00:57.8]} 29.
Qf4 {[%clk 0:01:02.5]} 29... Ra1+ {[%clk 0:00:53.9]} 30. Kh2 {[%clk 0:01:01.8]}
30... c2 {[%clk 0:00:54.3]} 31. Rc3 {[%clk 0:01:01.4]} 31... c1=Q {[%clk
0:00:52.9]} 32. Rxc1 {[%clk 0:01:01]} 32... Rxc1 {[%clk 0:00:52.2]} 33. Qxc1
{[%clk 0:01:01.4]} 33... Qd8 {[%clk 0:00:49]} 34. Qf4 {[%clk 0:01:00]} 34... Qf6
{[%clk 0:00:48.3]} 35. Qg3 {[%clk 0:00:56.8]} 35... Rd8 {[%clk 0:00:46.1]} 36.
Ng4 {[%clk 0:00:41]} 36... Qxd4 {[%clk 0:00:43.8]} 37. h5 {[%clk 0:00:41.1]}
37... Bxh5 {[%clk 0:00:39.4]} 38. Nxh6+ {[%clk 0:00:40.8]} 38... Kf8 {[%clk
0:00:36.6]} 39. Nf5 {[%clk 0:00:39.4]} 39... Qf6 {[%clk 0:00:29.4]} 40. Qc7
{[%clk 0:00:32.1]} 40... g6 {[%clk 0:00:27.6]} 41. Nd6 {[%clk 0:00:31.6]} 41...
Kg7 {[%clk 0:00:26.9]} 42. f3 {[%clk 0:00:20.1]} 42... Rh8 {[%clk 0:00:24.6]}
43. Kg3 {[%clk 0:00:19.1]} 43... Ra8 {[%clk 0:00:21.1]} 44. Qxc6 {[%clk
0:00:15.4]} 44... Qg5+ {[%clk 0:00:20]} 45. Kh3 {[%clk 0:00:14.7]} 45... Bg4+
{[%clk 0:00:18.8]} 46. fxg4 {[%clk 0:00:13.6]} 46... Rh8+ {[%clk 0:00:18.1]} 47.
Kg3 {[%clk 0:00:13.2]} 47... Qe5+ {[%clk 0:00:17.8]} 48. Kf3 {[%clk 0:00:13.1]}
48... Qc3+ {[%clk 0:00:17.1]} 49. Kf2 {[%clk 0:00:13]} 49... Qd2+ {[%clk
0:00:16.3]} 50. Kf3 {[%clk 0:00:13.2]} 50... Qd3+ {[%clk 0:00:15.5]} 51. Kf2
{[%clk 0:00:13.4]} 51... Rh1 {[%clk 0:00:15.5]} 52. Ne8+ {[%clk 0:00:12.3]}
52... Kf8 {[%clk 0:00:14.8]} 53. Nd6 {[%clk 0:00:11.4]} 53... Rf1# {[%clk
0:00:14]} 0-1